bitfinex-derivatives/quotes_BTCF0:USTF0_20240903
["timestamp","ask_amount","ask_price","bid_price","bid_amount"]
[1725326595736,0.00125302,59286.0,59285.0,0.067867]
[1725326596141,0.00125302,59286.0,59285.0,0.068867]
[1725326597235,0.07171902,59286.0,59285.0,0.069867]
[1725326597451,0.07171902,59286.0,59285.0,0.06927534]
[1725326599453,0.07171902,59286.0,59285.0,0.0024]
[1725326600747,0.07171902,59286.0,59285.0,0.069867]
[1725326604655,0.00425302,59286.0,59285.0,0.069867]
[1725326609055,0.00425302,59286.0,59285.0,0.28837716]
[1725326609248,0.00425302,59286.0,59285.0,0.3722528]
[1725326609946,0.00425302,59286.0,59285.0,0.28837716]
[1725326611056,0.00425302,59286.0,59285.0,0.37229957]
[1725326611450,0.00425302,59286.0,59285.0,0.37229872]
[1725326611653,0.00425302,59286.0,59285.0,0.37230022]
[1725326612963,0.00425302,59286.0,59285.0,0.3723028]
[1725326613759,0.00425302,59286.0,59285.0,0.28837974]
[1725326613960,0.00425302,59286.0,59285.0,0.37230133]
[1725326615463,0.00425302,59286.0,59285.0,0.15378859]
[1725326615850,0.16171902,59286.0,59285.0,0.15378859]
[1725326616160,0.16171902,59286.0,59285.0,0.069867]
[1725326617251,0.16171902,59286.0,59275.0,0.36105302]
[1725326617252,1.62855902,59286.0,59275.0,0.36105302]
[1725326617457,1.62855902,59286.0,59275.0,0.00025302]
[1725326617458,0.0904,59276.0,59275.0,0.00025302]
[1725326618248,0.157877,59276.0,59275.0,0.00025302]
[1725326618859,0.161877,59276.0,59275.0,0.00025302]
[1725326619752,0.067483,59271.0,59270.0,0.00092]
[1725326619960,0.067493,59262.0,59256.0,0.0039]
[1725326620159,0.0904,59257.0,59256.0,0.00082]
[1725326620457,0.09,59257.0,59256.0,0.00082]
[1725326621657,0.088,59257.0,59256.0,0.00082]
[1725326622061,1.26628,59257.0,59256.0,0.00082]
[1725326622360,0.067513,59245.0,59234.0,0.0451]
[1725326622563,0.067515,59243.0,59234.0,0.04598]
[1725326622753,0.067515,59243.0,59234.0,0.0451]
[1725326623058,0.067515,59243.0,59242.0,0.012]
[1725326623253,0.067515,59243.0,59234.0,0.112625]
[1725326623254,0.067515,59243.0,59235.0,0.3728]
[1725326623561,0.0464,59244.0,59239.0,0.012]
[1725326624162,0.0464,59244.0,59240.0,0.05035473]
[1725326624369,0.0464,59244.0,59239.0,0.012]
[1725326624667,0.05098617,59244.0,59239.0,0.012]
[1725326625270,0.0008,59240.0,59239.0,0.005]
[1725326625675,0.0008,59240.0,59239.0,0.017]
[1725326626062,0.0008,59240.0,59239.0,0.022]
[1725326626371,0.0018,59240.0,59239.0,0.022]
[1725326626767,0.0018,59240.0,59239.0,0.182]
[1725326627071,0.0018,59240.0,59239.0,0.782]
[1725326627266,0.001,59244.0,59239.0,0.782]
[1725326627468,0.001,59244.0,59243.0,0.5328]
[1725326628059,0.0487,59256.0,59247.0,0.06751]
[1725326628363,0.0469,59257.0,59247.0,0.23951]
[1725326628766,0.3608,59259.0,59247.0,0.83951]
[1725326629269,0.0956,59265.0,59262.0,0.067493]
[1725326629270,0.00556205,59263.0,59262.0,0.067493]
[1725326629462,0.00556205,59263.0,59262.0,0.227493]
[1725326629662,0.00828271,59272.0,59269.0,0.067485]
[1725326629864,0.00828271,59272.0,59269.0,0.067885]
[1725326630062,0.01386354,59272.0,59269.0,0.067885]
[1725326631563,0.067481,59273.0,59269.0,0.067885]
[1725326631765,0.007,59270.0,59269.0,0.068885]
[1725326632161,0.016,59270.0,59269.0,0.069485]
[1725326632362,0.018,59270.0,59269.0,0.069485]
[1725326633270,0.015,59270.0,59269.0,0.069485]
[1725326634476,0.012,59270.0,59269.0,0.068485]
[1725326634873,0.006,59270.0,59269.0,0.067485]
[1725326635069,0.00555579,59273.0,59270.0,0.067484]
[1725326635269,0.16025302,59275.0,59272.0,0.0004]
[1725326635471,0.16025302,59275.0,59274.0,0.0004]
[1725326635773,0.16025302,59275.0,59272.0,0.0004]
[1725326635974,0.0004,59273.0,59272.0,0.0004]
[1725326636181,0.0054,59273.0,59272.0,0.0004]
[1725326637078,0.0054,59273.0,59272.0,0.067882]
[1725326637877,0.2393967,59275.0,59274.0,0.0006]
[1725326638078,0.2393967,59275.0,59274.0,0.001]
[1725326638574,0.2333967,59275.0,59274.0,0.0004]
[1725326639166,0.2453967,59275.0,59274.0,0.0024]
[1725326640775,0.6061967,59275.0,59274.0,0.0024]
[1725326641371,0.2453967,59275.0,59274.0,0.0024]
[1725326642880,0.0853967,59275.0,59274.0,0.069879]
[1725326643782,0.01225302,59275.0,59274.0,0.229879]
[1725326646076,0.01225302,59275.0,59274.0,0.069879]
[1725326652083,0.01225302,59275.0,59274.0,0.117679]
[1725326653687,0.01225302,59275.0,59274.0,0.277679]
[1725326654293,0.01225302,59275.0,59274.0,0.275679]
[1725326654294,0.00925302,59275.0,59274.0,0.275679]
[1725326654591,0.00925302,59275.0,59274.0,0.115679]
[1725326655190,0.01025302,59275.0,59274.0,0.115679]
[1725326655397,0.00525302,59275.0,59274.0,0.115679]
[1725326655582,0.01125302,59275.0,59274.0,0.115679]
[1725326656195,0.01225302,59275.0,59274.0,0.116679]
[1725326657289,0.01125302,59275.0,59274.0,0.116679]
[1725326657993,0.01225302,59275.0,59274.0,0.116679]
[1725326658395,0.01325302,59275.0,59274.0,0.116679]
[1725326658584,0.00725302,59275.0,59274.0,0.116679]
[1725326658782,0.00725302,59275.0,59274.0,0.117679]
[1725326658783,0.01325302,59275.0,59274.0,0.117679]
[1725326659998,0.01325302,59275.0,59274.0,0.207679]
[1725326660382,0.00725302,59275.0,59274.0,0.206679]
[1725326660587,0.01325302,59275.0,59274.0,0.207679]
[1725326661193,0.01325302,59275.0,59274.0,0.25764209]
[1725326662000,0.00625302,59275.0,59274.0,0.25664209]
[1725326662196,0.01425302,59275.0,59274.0,0.25764209]
[1725326665412,0.01525302,59275.0,59274.0,0.25764209]
[1725326665705,0.01525302,59275.0,59274.0,0.207679]
[1725326666096,0.01525302,59275.0,59274.0,0.25764209]
[1725326667906,1.70712902,59275.0,59274.0,0.05236309]
[1725326668103,1.70712902,59275.0,59264.0,0.0545035]
[1725326668104,0.067483,59271.0,59264.0,0.0545035]
[1725326668308,0.50612,59274.0,59264.0,0.00025302]
[1725326668309,1.0502,59265.0,59264.0,0.00025302]
[1725326668611,0.51769,59265.0,59264.0,0.00025302]
[1725326669504,0.51769,59265.0,59264.0,0.00225302]
[1725326669910,0.42769,59265.0,59264.0,0.00225302]
[1725326670408,0.93389,59265.0,59264.0,0.00225302]
[1725326670604,0.42769,59265.0,59264.0,0.00225302]
[1725326670807,0.93389,59265.0,59264.0,0.00225302]
[1725326671509,0.93389,59265.0,59264.0,0.00425302]
[1725326671911,0.93389,59265.0,59264.0,0.00225302]
[1725326672111,0.43069,59265.0,59264.0,0.00225302]
[1725326672306,0.43269,59265.0,59264.0,0.00025302]
[1725326673111,0.43844385,59265.0,59264.0,0.00025302]
[1725326673512,0.07864385,59265.0,59264.0,0.00025302]
[1725326673807,0.43944385,59265.0,59264.0,0.00025302]
[1725326675708,0.50693385,59265.0,59264.0,0.00025302]
[1725326676013,0.66693385,59265.0,59264.0,0.00025302]
[1725326676206,0.78693385,59265.0,59264.0,0.00025302]
[1725326677319,1.89313385,59265.0,59264.0,0.00025302]
[1725326677714,2.25393385,59265.0,59264.0,0.00025302]
[1725326678720,0.067498,59258.0,59257.0,0.0411035]
[1725326678906,0.588298,59258.0,59257.0,0.0411035]
[1725326679108,0.588698,59258.0,59257.0,0.0411035]
[1725326679308,0.067502,59254.0,59252.0,0.06713964]
[1725326679518,0.31858325,59253.0,59252.0,0.06713964]
[1725326679720,0.31898325,59253.0,59252.0,0.06713964]
[1725326679905,0.38648625,59253.0,59252.0,0.06713964]
[1725326680516,0.067504,59252.0,59251.0,0.06713964]
[1725326680723,0.067904,59252.0,59251.0,0.06713964]
[1725326680916,0.067904,59252.0,59250.0,0.0012]
[1725326681120,0.0004,59251.0,59250.0,0.0012]
[1725326681509,0.057904,59252.0,59250.0,0.068707]
[1725326681713,0.058904,59252.0,59251.0,0.012]
[1725326682411,0.001,59251.0,59250.0,0.15873285]
[1725326683019,0.001,59251.0,59250.0,1.26505285]
[1725326683320,0.00025302,59258.0,59251.0,0.51632]
[1725326683521,0.00025302,59258.0,59257.0,0.5208]
[1725326684825,0.00025302,59258.0,59257.0,0.593299]
[1725326685220,0.00025302,59258.0,59257.0,0.433299]
[1725326686024,0.00025302,59258.0,59257.0,0.435299]
[1725326693724,0.00025302,59258.0,59257.0,0.074499]
[1725326694035,0.00025302,59258.0,59257.0,0.435299]
[1725326694533,0.00025302,59258.0,59257.0,0.074499]
[1725326694730,0.00025302,59258.0,59257.0,0.435299]
[1725326697132,0.22775102,59258.0,59257.0,0.007]
[1725326697932,0.15775102,59258.0,59257.0,0.007]
[1725326699046,0.06775102,59258.0,59257.0,0.007]
[1725326700534,0.00025302,59258.0,59257.0,0.074499]
[1725326703841,0.00025302,59258.0,59257.0,0.234499]
[1725326706037,0.00025302,59258.0,59257.0,0.301998]
[1725326707137,0.00025302,59258.0,59257.0,0.234499]
[1725326707441,0.00025302,59258.0,59257.0,0.074499]
[1725326709033,0.06775102,59258.0,59257.0,0.007]
[1725326709430,0.11345102,59258.0,59257.0,0.007]
[1725326711341,0.11906343,59258.0,59257.0,0.007]
[1725326715031,0.04595302,59258.0,59257.0,0.074499]
[1725326715429,0.00025302,59258.0,59257.0,0.074499]
[1725326718739,0.00025302,59258.0,59257.0,0.234499]
[1725326718943,0.0491,59272.0,59257.0,1.46935004]
[1725326719146,0.0491,59272.0,59268.0,0.067486]
[1725326719147,0.0039,59269.0,59268.0,0.067486]
[1725326719345,0.0452,59272.0,59271.0,0.067483]
[1725326720941,0.0562,59272.0,59271.0,0.068483]
[1725326721333,0.0672,59272.0,59271.0,0.069483]
[1725326728755,0.428,59272.0,59271.0,0.069483]
[1725326729641,0.0672,59272.0,59271.0,0.069483]
[1725326730451,0.022,59272.0,59271.0,0.136966]
[1725326730761,0.022,59272.0,59271.0,0.497766]
[1725326731361,0.022,59272.0,59271.0,0.50337878]
[1725326736151,0.022,59272.0,59271.0,0.43589578]
[1725326744665,0.022,59272.0,59271.0,0.430283]
[1725326747561,0.02775016,59272.0,59271.0,0.430283]
[1725326748277,0.09523216,59272.0,59271.0,0.430283]
[1725326748457,0.09523216,59272.0,59271.0,0.3628]
[1725326748458,0.19003216,59272.0,59271.0,0.3628]
[1725326751066,0.19003216,59272.0,59271.0,0.002]
[1725326756072,0.19003216,59272.0,59271.0,0.092]
[1725326757861,1.57367416,59272.0,59271.0,0.002]
[1725326758168,1.64115616,59272.0,59271.0,0.002]
[1725326758670,1.57367416,59272.0,59271.0,0.002]
[1725326758967,0.19003216,59272.0,59271.0,0.092]
[1725326759559,0.19003216,59272.0,59271.0,0.002]
[1725326763564,0.19003216,59272.0,59271.0,0.069483]
[1725326763762,0.12255016,59272.0,59271.0,0.069483]
[1725326763968,0.07675016,59272.0,59271.0,0.069483]
[1725326765170,0.16675016,59272.0,59271.0,0.069483]
[1725326766278,0.23423216,59272.0,59271.0,0.002]
[1725326766577,1.40787416,59272.0,59271.0,0.002]
[1725326768075,0.80787416,59272.0,59271.0,0.002]
[1725326769077,0.30171416,59272.0,59271.0,0.002]
[1725326770674,0.80787416,59272.0,59271.0,0.002]
[1725326770884,0.30171416,59272.0,59271.0,0.002]
[1725326775371,0.21171416,59272.0,59271.0,0.002]
[1725326775567,0.21171416,59272.0,59271.0,0.069483]
[1725326775568,0.02775016,59272.0,59271.0,0.069483]
[1725326777091,0.09523216,59272.0,59271.0,0.069483]
[1725326787488,0.02775016,59272.0,59271.0,0.069483]
[1725326788884,1.49471016,59272.0,59266.0,0.00025302]
[1725326789079,0.067495,59260.0,59255.0,0.06717043]
[1725326789275,0.067495,59260.0,59253.0,0.0483]
[1725326789276,0.067499,59257.0,59253.0,0.0483]
[1725326789487,0.067499,59257.0,59253.0,0.11547043]
[1725326789488,0.0004,59254.0,59253.0,0.11547043]
[1725326789688,0.067499,59257.0,59253.0,0.47627043]
[1725326789883,0.067499,59257.0,59256.0,0.0004]
[1725326790082,0.066499,59257.0,59256.0,0.0004]
[1725326791288,0.156499,59257.0,59256.0,0.0004]
[1725326791783,0.16419575,59257.0,59256.0,0.0064]
[1725326791977,0.07419575,59257.0,59256.0,0.0064]
[1725326792585,0.07419575,59257.0,59256.0,0.0104]
[1725326802600,0.23419575,59257.0,59256.0,0.0104]
[1725326804402,0.30169475,59257.0,59256.0,0.0104]
[1725326806197,0.30169475,59257.0,59256.0,0.06070464]
[1725326811105,0.30169475,59257.0,59256.0,0.0104]
[1725326811897,0.23169475,59257.0,59256.0,0.0104]
[1725326813800,0.59249475,59257.0,59256.0,0.0104]
[1725326814496,0.23169475,59257.0,59256.0,0.0104]
[1725326815205,0.23169475,59257.0,59256.0,0.07757043]
[1725326816209,0.23169475,59257.0,59256.0,0.0104]
[1725326819197,0.16419575,59257.0,59256.0,0.0104]
[1725326822606,0.07419575,59257.0,59256.0,0.0104]
[1725326823007,0.16419575,59257.0,59256.0,0.0104]
[1725326828618,0.52499575,59257.0,59256.0,0.0104]
[1725326829421,0.59249475,59257.0,59256.0,0.0104]
[1725326836321,0.52499575,59257.0,59256.0,0.0104]
[1725326837214,0.16419575,59257.0,59256.0,0.0104]
[1725326838626,0.52499575,59257.0,59256.0,0.0104]
[1725326838818,0.16419575,59257.0,59256.0,0.0104]
[1725326841929,0.16419575,59257.0,59256.0,0.22299604]
[1725326843124,0.52499575,59257.0,59256.0,0.22299604]
[1725326847624,0.16419575,59257.0,59256.0,0.13899042]
[1725326849027,0.23169475,59257.0,59256.0,0.0104]
[1725326851228,0.00769675,59257.0,59256.0,0.0104]
[1725326851429,0.00025302,59262.0,59261.0,0.067494]
[1725326851627,0.00025302,59262.0,59261.0,0.518694]
[1725326852244,0.00025302,59262.0,59261.0,1.624934]
[1725326853842,0.00025302,59262.0,59261.0,1.534934]
[1725326854241,0.00025302,59262.0,59261.0,1.624934]
[1725326861546,0.00025302,59262.0,59261.0,0.664134]
[1725326861749,0.00025302,59262.0,59261.0,1.024934]
[1725326863945,0.00025302,59262.0,59261.0,0.428694]
[1725326864141,0.00025302,59262.0,59261.0,0.518694]
[1725326872752,0.00025302,59262.0,59261.0,0.56895849]
[1725326875361,0.00025302,59262.0,59261.0,0.518694]
[1725326877244,0.00025302,59262.0,59261.0,0.428694]
[1725326877448,0.00025302,59262.0,59261.0,0.518694]
[1725326878460,0.00025302,59262.0,59261.0,0.58571332]
[1725326878645,0.00025302,59262.0,59261.0,0.518694]
[1725326879145,0.00025302,59262.0,59261.0,0.58571332]
[1725326879851,0.00025302,59262.0,59261.0,0.518694]
[1725326880054,0.00025302,59262.0,59261.0,0.58580325]
[1725326880359,0.00025302,59262.0,59261.0,0.586188]
[1725326880557,2e-08,59262.0,59261.0,1.759922]
[1725326880762,0.0004,59267.0,59266.0,0.134976]
[1725326880945,0.0004,59267.0,59266.0,0.79860195]
[1725326881150,0.0004,59267.0,59266.0,1.90480195]
[1725326881356,0.0004,59267.0,59266.0,1.82090932]
[1725326881956,0.0054,59267.0,59266.0,1.82190932]
[1725326882156,0.0104,59267.0,59266.0,1.82190932]
[1725326882658,0.0104,59267.0,59266.0,1.9057992]
[1725326883555,0.0104,59267.0,59266.0,1.77726588]
[1725326884251,0.0104,59267.0,59266.0,1.693376]
[1725326886457,0.0104,59267.0,59266.0,1.003376]
[1725326886759,0.0104,59267.0,59266.0,0.429688]
[1725326887054,0.0104,59267.0,59266.0,0.43528747]
[1725326893254,0.0558,59267.0,59266.0,0.43528747]
[1725326894161,0.0558,59267.0,59266.0,0.56383636]
[1725326895657,0.0104,59267.0,59266.0,0.66436534]
[1725326895967,0.0104,59267.0,59266.0,0.56383636]
[1725326896167,0.00600833,59272.0,59271.0,0.067483]
[1725326896364,0.00025302,59272.0,59271.0,0.64683189]
[1725326896568,0.00025302,59272.0,59271.0,0.64723189]
[1725326897768,0.01125302,59272.0,59271.0,0.64823189]
[1725326898665,0.02125302,59272.0,59271.0,0.64923189]
[1725326900769,0.0039,59279.0,59278.0,0.067475]
[1725326901072,0.0477,59285.0,59284.0,0.067468]
[1725326901268,0.0477,59285.0,59284.0,0.22492671]
[1725326901570,0.05348311,59285.0,59284.0,0.22492671]
[1725326902276,0.05948311,59285.0,59284.0,0.158868]
[1725326903073,0.05948311,59285.0,59284.0,0.159868]
[1725326903074,0.07348311,59285.0,59284.0,0.159868]
[1725326905369,0.60034365,59285.0,59284.0,0.0024]
[1725326906586,0.23954365,59285.0,59284.0,0.0024]
[1725326906887,0.60034365,59285.0,59284.0,0.0024]
[1725326909189,0.30003805,59285.0,59284.0,0.0024]
[1725326909385,0.66083805,59285.0,59284.0,0.0024]
[1725326910685,0.29144451,59285.0,59284.0,0.0024]
[1725326910900,0.0039,59299.0,59289.0,0.134924]
[1725326911089,0.0467,59305.0,59298.0,0.3612]
[1725326911292,0.0486,59306.0,59305.0,0.067444]
[1725326912388,0.0486,59306.0,59305.0,0.068444]
[1725326914184,0.0486,59306.0,59305.0,0.069444]
[1725326917582,0.0486,59306.0,59305.0,0.430244]
[1725326917788,0.00025302,59311.0,59310.0,0.067438]
[1725326917990,0.00025302,59311.0,59310.0,0.067838]
[1725326918883,0.00025302,59311.0,59310.0,0.068838]
[1725326919084,0.00025302,59311.0,59310.0,0.069838]
[1725326925996,0.36105302,59311.0,59310.0,0.069838]
[1725326926311,0.00025302,59311.0,59310.0,0.069838]
[1725326930203,0.36105302,59311.0,59310.0,0.069838]
[1725326931407,0.93429002,59311.0,59310.0,0.069838]
[1725326934496,0.93429002,59311.0,59310.0,0.0024]
[1725326934714,1.82765302,59311.0,59300.0,0.00025302]
[1725326934900,0.789049,59301.0,59300.0,0.00025302]
[1725326935100,0.905998,59301.0,59300.0,0.00025302]
[1725326935301,2.058078,59301.0,59300.0,0.00025302]
[1725326935901,2.058078,59301.0,59300.0,0.00125302]
[1725326936308,1.458078,59301.0,59300.0,0.00225302]
[1725326937208,1.46380021,59301.0,59300.0,0.00225302]
[1725326937714,1.46380021,59301.0,59300.0,0.00125302]
[1725326937903,1.46380021,59301.0,59300.0,0.00225302]
[1725326941112,2.06380021,59301.0,59300.0,0.00225302]
[1725326941513,1.70300021,59301.0,59300.0,0.00225302]
[1725326942413,1.10300021,59301.0,59300.0,0.00225302]
[1725326943710,1.70300021,59301.0,59300.0,0.00225302]
[1725326943906,1.10300021,59301.0,59300.0,0.00225302]
[1725326944108,1.10300021,59301.0,59300.0,0.00125302]
[1725326944317,0.52967121,59301.0,59300.0,0.00225302]
[1725326944515,0.43437121,59301.0,59300.0,0.00225302]
[1725326945507,0.36692221,59301.0,59300.0,0.22870302]
[1725326945706,0.36692221,59301.0,59300.0,0.22970302]
[1725326945707,0.3612,59301.0,59300.0,0.22970302]
[1725326947422,0.3612,59301.0,59300.0,0.22870302]
[1725326947716,0.3612,59301.0,59300.0,0.22970302]
[1725326947912,0.0004,59301.0,59300.0,0.22870302]
[1725326948115,0.0004,59301.0,59300.0,0.22970302]
[1725326948413,0.0004,59301.0,59300.0,0.27999051]
[1725326950103,0.0004,59301.0,59300.0,0.22970302]
[1725326958829,0.0004,59301.0,59300.0,0.06970302]
[1725326959037,0.3612,59301.0,59300.0,0.06970302]
[1725326960031,0.428649,59301.0,59300.0,0.06970302]
[1725326960629,0.43323628,59301.0,59300.0,0.06970302]
[1725326962435,0.07243628,59301.0,59300.0,0.06970302]
[1725326962638,0.067849,59301.0,59300.0,0.06970302]
[1725326968148,0.0004,59301.0,59300.0,0.06970302]
[1725326968536,0.0004,59301.0,59300.0,0.11988206]
[1725326968841,0.0004,59301.0,59300.0,0.06970302]
[1725326969235,0.0004,59301.0,59300.0,0.11988206]
[1725326972240,0.0004,59301.0,59300.0,0.06970302]
[1725326973852,0.0004,59301.0,59300.0,0.22970302]
[1725326974159,0.0004,59301.0,59300.0,0.15970302]
[1725326974839,0.0024,59301.0,59300.0,0.15970302]
[1725326975343,0.0004,59301.0,59300.0,0.22576173]
[1725326975544,0.0024,59301.0,59300.0,0.22576173]
[1725326975740,0.0024,59301.0,59300.0,0.22676173]
[1725326976348,0.0024,59301.0,59300.0,0.15970302]
[1725326986055,0.0024,59301.0,59300.0,0.06970302]
[1725326986252,0.159849,59301.0,59300.0,0.00225302]
[1725326986755,0.207849,59301.0,59300.0,0.00225302]
[1725326987157,0.117849,59301.0,59300.0,0.00225302]
[1725326988372,0.117849,59301.0,59300.0,0.06970302]
[1725326995263,0.275298,59301.0,59300.0,0.00225302]
[1725326996562,0.185298,59301.0,59300.0,0.00225302]
[1725327000166,0.117849,59301.0,59300.0,0.00225302]
[1725327000373,0.117849,59301.0,59300.0,0.09225302]
[1725327000973,0.069849,59301.0,59300.0,0.09225302]
[1725327001365,0.069849,59301.0,59300.0,0.15970302]
[1725327010472,0.069849,59301.0,59300.0,0.21005187]
[1725327011177,0.0024,59301.0,59300.0,0.21005187]
[1725327011376,0.0024,59301.0,59300.0,0.15970302]
[1725327021385,0.0024,59301.0,59300.0,0.22676173]
[1725327023884,0.0024,59301.0,59300.0,0.15970302]
[1725327024188,0.0024,59301.0,59300.0,0.22676173]
[1725327024379,0.0024,59301.0,59300.0,0.15970302]
[1725327024779,0.0024,59301.0,59300.0,0.22681026]
[1725327026087,0.0024,59301.0,59300.0,0.15970302]
[1725327028288,0.0024,59301.0,59300.0,0.22681026]
[1725327029497,0.0024,59301.0,59300.0,0.15970302]
[1725327033895,0.0024,59301.0,59300.0,0.05970302]
[1725327034095,0.0024,59301.0,59300.0,0.14970302]
[1725327036385,0.0024,59301.0,59300.0,0.21681026]
[1725327038887,0.0024,59301.0,59300.0,0.12681026]
[1725327039196,0.067454,59296.0,59295.0,0.06736026]
[1725327039392,0.518254,59296.0,59295.0,0.00025302]
[1725327039593,0.518654,59296.0,59295.0,0.05066507]
[1725327040090,0.518654,59296.0,59295.0,0.00025302]
[1725327040809,0.523654,59296.0,59295.0,0.00025302]
[1725327041497,0.528654,59296.0,59295.0,0.00025302]
[1725327045000,1.034614,59296.0,59295.0,0.00025302]
[1725327045206,1.03906927,59296.0,59295.0,0.00025302]
[1725327046093,0.53310927,59296.0,59295.0,0.00025302]
[1725327047210,0.17230927,59296.0,59295.0,0.00025302]
[1725327047396,0.53310927,59296.0,59295.0,0.00025302]
[1725327048508,0.01485527,59296.0,59295.0,0.09025302]
[1725327048690,0.01485527,59296.0,59295.0,0.51850802]
[1725327048691,0.0104,59296.0,59295.0,0.51850802]
[1725327049794,0.0104,59296.0,59295.0,0.52314327]
[1725327054605,0.0104,59296.0,59295.0,0.59059827]
[1725327055002,0.0104,59296.0,59295.0,1.69655827]
[1725327055202,0.0039,59303.0,59302.0,0.067447]
[1725327055505,0.0454,59309.0,59302.0,0.4512]
[1725327055701,0.0454,59309.0,59308.0,0.0904]
[1725327056807,0.0454,59309.0,59308.0,0.157841]
[1725327057017,0.04991524,59309.0,59308.0,0.157841]
[1725327057210,0.00025302,59311.0,59308.0,0.4512]
[1725327057398,0.00025302,59311.0,59310.0,0.067838]
[1725327057603,0.00025302,59311.0,59310.0,0.1181035]
[1725327058114,0.00025302,59311.0,59310.0,0.067838]
[1725327058502,0.00025302,59311.0,59310.0,0.115538]
[1725327058703,0.00825302,59311.0,59310.0,0.116538]
[1725327059304,0.00825302,59311.0,59310.0,0.477338]
[1725327059902,0.01625302,59311.0,59310.0,0.478338]
[1725327060803,0.01625302,59311.0,59310.0,0.545776]
[1725327062513,0.01625302,59311.0,59310.0,0.478338]
[1725327064809,0.01625302,59311.0,59310.0,0.545776]
[1725327065004,0.01625302,59311.0,59310.0,0.478338]
[1725327065508,0.01625302,59311.0,59310.0,0.545776]
[1725327067020,0.0039,59316.0,59310.0,1.651576]
[1725327067313,0.0039,59327.0,59326.0,0.06742]
[1725327067505,0.067418,59329.0,59326.0,0.15782]
[1725327067705,0.067418,59329.0,59328.0,0.0004]
[1725327067907,0.067418,59329.0,59326.0,0.15782]
[1725327068109,0.0004,59327.0,59326.0,0.15782]
[1725327068618,0.0084,59327.0,59326.0,0.15882]
[1725327069516,0.0084,59327.0,59326.0,0.15982]
[1725327070122,0.0004,59327.0,59326.0,0.15982]
[1725327070523,0.067819,59327.0,59326.0,0.0024]
[1725327071328,1.173499,59327.0,59326.0,0.0024]
[1725327071532,1.240918,59327.0,59326.0,0.0024]
[1725327074139,1.962518,59327.0,59326.0,0.0024]
[1725327075136,2.082518,59327.0,59326.0,0.0024]
[1725327079238,1.362518,59327.0,59326.0,0.0024]
[1725327081036,1.001718,59327.0,59326.0,0.0024]
[1725327081232,1.601718,59327.0,59326.0,0.0024]
[1725327082435,1.001718,59327.0,59326.0,0.0024]
[1725327082831,1.091718,59327.0,59326.0,0.0024]
[1725327083036,0.586038,59327.0,59326.0,0.0024]
[1725327083333,1.091718,59327.0,59326.0,0.0024]
[1725327084137,0.586038,59327.0,59326.0,0.0024]
[1725327084632,1.091718,59327.0,59326.0,0.0024]
[1725327085031,0.586038,59327.0,59326.0,0.0024]
[1725327085438,0.428619,59327.0,59326.0,0.0024]
[1725327085845,0.518619,59327.0,59326.0,0.0024]
[1725327086044,0.157819,59327.0,59326.0,0.0024]
[1725327086251,0.0004,59327.0,59326.0,0.15982]
[1725327089945,0.0004,59327.0,59326.0,0.06982]
[1725327095152,0.067819,59327.0,59326.0,0.06982]
[1725327101858,0.135238,59327.0,59326.0,0.0024]
[1725327102056,1.240918,59327.0,59326.0,0.0024]
[1725327103065,1.360918,59327.0,59326.0,0.0024]
[1725327109956,0.855238,59327.0,59326.0,0.0024]
[1725327110259,1.360918,59327.0,59326.0,0.0024]
[1725327112057,1.450918,59327.0,59326.0,0.0024]
[1725327116555,1.572518,59327.0,59326.0,0.0024]
[1725327119971,1.066838,59327.0,59326.0,0.0024]
[1725327120979,2.239937,59327.0,59326.0,0.001]
[1725327121277,0.134874,59311.0,59310.0,0.0043]
[1725327121463,0.946474,59311.0,59310.0,0.0004]
[1725327121660,1.522674,59311.0,59310.0,0.0004]
[1725327121982,0.428637,59311.0,59310.0,0.0004]
[1725327122273,0.0004,59311.0,59310.0,1.173238]
[1725327122472,0.0004,59311.0,59310.0,1.535038]
[1725327122473,0.0034,59311.0,59310.0,1.535038]
[1725327122870,0.0034,59311.0,59310.0,1.628738]
[1725327122871,0.0044,59311.0,59310.0,1.628738]
[1725327123068,0.0044,59311.0,59310.0,1.6332045]
[1725327125376,0.0044,59311.0,59310.0,1.0332045]
[1725327125881,0.0044,59311.0,59310.0,1.6332045]
[1725327127278,0.0044,59311.0,59310.0,1.5332045]
[1725327127780,0.0044,59311.0,59310.0,1.6006425]
[1725327129865,0.0044,59311.0,59310.0,1.596176]
[1725327130269,0.0044,59311.0,59310.0,0.996176]
[1725327130488,0.0044,59311.0,59310.0,1.596176]
[1725327131173,0.0044,59311.0,59310.0,1.6006955]
[1725327131370,0.0044,59311.0,59310.0,1.66771469]
[1725327131872,0.0044,59311.0,59310.0,1.6006955]
[1725327132176,0.00025302,59316.0,59315.0,0.067433]
[1725327132386,0.00025302,59316.0,59315.0,0.58566167]
[1725327132579,0.00025302,59316.0,59315.0,1.69142167]
[1725327133082,0.00025302,59316.0,59315.0,1.624393]
[1725327133472,0.00125302,59316.0,59315.0,1.625393]
[1725327134074,0.00325302,59316.0,59315.0,1.69340832]
[1725327134276,0.00325302,59316.0,59315.0,1.69340945]
[1725327134684,0.00325302,59316.0,59315.0,1.69340307]
[1725327137191,0.00325302,59316.0,59315.0,1.626393]
[1725327139603,0.00325302,59316.0,59315.0,1.026393]
[1725327142297,0.07068502,59316.0,59315.0,1.026393]
[1725327142500,0.07068502,59316.0,59315.0,0.520633]
[1725327142705,0.07068502,59316.0,59315.0,0.665593]
[1725327143194,0.07068502,59316.0,59315.0,0.159833]
[1725327147308,0.07514099,59316.0,59315.0,0.159833]
[1725327147898,0.07068502,59316.0,59315.0,0.159833]
[1725327148110,0.07068502,59316.0,59315.0,0.0924]
[1725327148292,0.07068502,59316.0,59315.0,0.0024]
[1725327148493,0.26067902,59316.0,59315.0,0.0024]
[1725327149203,0.62147902,59316.0,59315.0,0.0024]
[1725327151603,0.62147902,59316.0,59315.0,0.06941007]
[1725327151908,0.62147902,59316.0,59315.0,0.0024]
[1725327152296,0.62147902,59316.0,59315.0,0.06941007]
[1725327152599,0.03581502,59316.0,59315.0,0.0024]
[1725327152800,0.3608,59326.0,59315.0,0.1308527]
[1725327153103,0.067426,59321.0,59320.0,0.09]